[Event "Titled Tuesday Blitz January 18 2022"]
[White "Narayanan.S.L"]
[Black "Kadam, Om Manish"]
[WhiteFideId "5058422"]
[BlackFideId "45076294"]
[WhiteElo "2494"]
[BlackElo "1729"]
[Result "1-0"]
[Round "08"]
[TimeControl "180+1"]
[Date "2022.01.18"]
[WhiteClock "0:00:06"]
[BlackClock "0:00:05"]

1. c4 {[%clk 0:03:00]}  Nf6 {[%clk 0:02:59]} 2. Nc3 {[%clk 0:03:01]}  g6 {[%clk 0:02:59]} 3. g3 {[%clk 0:03:00]}  Bg7 {[%clk 0:02:59]} 4. Bg2 {[%clk 0:03:01]}  O-O {[%clk 0:02:59]} 5. Nf3 {[%clk 0:03:02]}  d6 {[%clk 0:03:00]} 6. d4 {[%clk 0:03:02]}  Nbd7 {[%clk 0:02:59]} 7. O-O {[%clk 0:03:02]}  e5 {[%clk 0:02:59]} 8. e4 {[%clk 0:03:03]}  Re8 {[%clk 0:02:58]} 9. Re1 {[%clk 0:03:03]}  exd4 {[%clk 0:02:57]} 10. Nxd4 {[%clk 0:03:04]}  Nc5 {[%clk 0:02:57]} 11. h3 {[%clk 0:03:04]}  a5 {[%clk 0:02:57]} 12. b3 {[%clk 0:03:03]}  Bd7 {[%clk 0:02:57]} 13. Bf4 {[%clk 0:03:03]}  Nh5 {[%clk 0:02:56]} 14. Be3 {[%clk 0:03:02]}  c6 {[%clk 0:02:54]} 15. Qd2 {[%clk 0:02:52]}  Qe7 {[%clk 0:02:42]} 16. Rad1 {[%clk 0:02:51]}  Rad8 {[%clk 0:02:42]} 17. Bg5 {[%clk 0:02:34]}  Nf6 {[%clk 0:02:40]} 18. f4 {[%clk 0:02:29]}  h6 {[%clk 0:02:37]} 19. Bh4 {[%clk 0:02:29]}  Bc8 {[%clk 0:01:34]} 20. Qf2 {[%clk 0:02:12]}  Qc7 {[%clk 0:01:29]} 21. e5 {[%clk 0:01:54]}  dxe5 {[%clk 0:01:15]} 22. fxe5 {[%clk 0:01:55]}  Rxe5 {[%clk 0:01:15]} 23. Bxf6 {[%clk 0:01:55]}  Rxe1+ {[%clk 0:01:14]} 24. Rxe1 {[%clk 0:01:55]}  Nd3 {[%clk 0:01:15]} 25. Bxg7 {[%clk 0:01:25]}  Nxf2 {[%clk 0:01:14]} 26. Be5 {[%clk 0:01:25]}  Qb6 {[%clk 0:01:09]} 27. Bf6 {[%clk 0:01:14]}  Nd3 {[%clk 0:01:00]} 28. Re3 {[%clk 0:01:13]}  Nb4 {[%clk 0:00:26]} 29. Na4 {[%clk 0:00:45]}  Qc7 {[%clk 0:00:21]} 30. a3 {[%clk 0:00:40]}  Na6 {[%clk 0:00:19]} 31. Kh2 {[%clk 0:00:36]}  Kf8 {[%clk 0:00:18]} 32. Be5 {[%clk 0:00:26]}  Qd7 {[%clk 0:00:18]} 33. Nb6 {[%clk 0:00:25]}  Qe8 {[%clk 0:00:12]} 34. Nxc8 {[%clk 0:00:22]}  Kg8 {[%clk 0:00:05]} 35. Bf4 {[%clk 0:00:20]}  Qd7 {[%clk 0:00:05]} 36. Ne7+ {[%clk 0:00:20]}  Kh7 {[%clk 0:00:05]} 37. Ndxc6 {[%clk 0:00:15]}  bxc6 {[%clk 0:00:05]} 38. Nxc6 {[%clk 0:00:16]}  Re8 {[%clk 0:00:05]} 39. Ne5 {[%clk 0:00:17]}  Qd4 {[%clk 0:00:04]} 40. Rd3 {[%clk 0:00:16]}  Qc5 {[%clk 0:00:04]} 41. Rd5 {[%clk 0:00:15]}  Qxa3 {[%clk 0:00:04]} 42. Rd7 {[%clk 0:00:15]}  Re7 {[%clk 0:00:05]} 43. Rd8 {[%clk 0:00:11]}  Qxb3 {[%clk 0:00:05]} 44. Ng4 {[%clk 0:00:11]}  Qb2 {[%clk 0:00:05]} 45. Rd2 {[%clk 0:00:05]}  Qc3 {[%clk 0:00:04]} 46. Ra2 {[%clk 0:00:04]}  Nc5 {[%clk 0:00:04]} 47. Bd6 {[%clk 0:00:04]}  Qxc4 {[%clk 0:00:03]} 48. Bxe7 {[%clk 0:00:04]}  Qxa2 {[%clk 0:00:03]} 49. Bxc5 {[%clk 0:00:04]}  a4 {[%clk 0:00:04]} 50. Bd4 {[%clk 0:00:05]}  f5 {[%clk 0:00:03]} 51. Nf6+ {[%clk 0:00:05]}  Kg7 {[%clk 0:00:03]} 52. Nd5+ {[%clk 0:00:05]}  Kf7 {[%clk 0:00:03]} 53. Nc3 {[%clk 0:00:05]}  Qc2 {[%clk 0:00:03]} 54. Nb5 {[%clk 0:00:03]}  Qd3 {[%clk 0:00:02]} 55. Bc6 {[%clk 0:00:03]}  a3 {[%clk 0:00:01]} 56. Bd5+ {[%clk 0:00:02]}  Ke7 {[%clk 0:00:02]} 57. Bc5+ {[%clk 0:00:02]}  Kd8 {[%clk 0:00:02]} 58. Bc6 {[%clk 0:00:02]}  Kc8 {[%clk 0:00:03]} 59. Nxa3 {[%clk 0:00:03]}  Qc2+ {[%clk 0:00:04]} 60. Nxc2 {[%clk 0:00:03]}  Kc7 {[%clk 0:00:05]} 61. Nd4 {[%clk 0:00:03]}  Kd8 {[%clk 0:00:05]} 62. Bg2 {[%clk 0:00:04]}  f4 {[%clk 0:00:06]} 63. Nc6+ {[%clk 0:00:05]}  Kc7 {[%clk 0:00:05]} 64. gxf4 {[%clk 0:00:06]}  h5 {[%clk 0:00:04]} 65. Ne5 {[%clk 0:00:06]}  h4 {[%clk 0:00:05]} 1-0


[Site "https://www.chess.com"]

[Event "Titled Tuesday Blitz January 18 2022"]
[White "Obolenskikh, Dmitry"]
[Black "Evdokimov, Alexander A."]
[WhiteFideId "4156013"]
[BlackFideId "4139275"]
[WhiteElo "2512"]
[BlackElo "2444"]
[Result "0-1"]
[Round "08"]
[TimeControl "180+1"]
[Date "2022.01.18"]
[WhiteClock "0:00:21"]
[BlackClock "0:00:14"]

1. e4 {[%clk 0:03:00]}  d6 {[%clk 0:02:59]} 2. d4 {[%clk 0:03:00]}  Nf6 {[%clk 0:02:58]} 3. Nc3 {[%clk 0:03:00]}  g6 {[%clk 0:02:59]} 4. f4 {[%clk 0:02:58]}  Bg7 {[%clk 0:02:58]} 5. Nf3 {[%clk 0:02:58]}  c5 {[%clk 0:02:55]} 6. Bb5+ {[%clk 0:02:57]}  Bd7 {[%clk 0:02:45]} 7. Bxd7+ {[%clk 0:02:53]}  Nfxd7 {[%clk 0:02:44]} 8. d5 {[%clk 0:02:52]}  O-O {[%clk 0:02:44]} 9. O-O {[%clk 0:02:49]}  Na6 {[%clk 0:02:42]} 10. Kh1 {[%clk 0:02:41]}  Rb8 {[%clk 0:02:41]} 11. a4 {[%clk 0:02:40]}  Nc7 {[%clk 0:02:41]} 12. f5 {[%clk 0:02:34]}  a6 {[%clk 0:02:37]} 13. Qe1 {[%clk 0:02:34]}  b5 {[%clk 0:02:36]} 14. Qh4 {[%clk 0:02:30]}  bxa4 {[%clk 0:02:03]} 15. Ng5 {[%clk 0:02:20]}  Nf6 {[%clk 0:01:55]} 16. Rxa4 {[%clk 0:01:55]}  Rb4 {[%clk 0:01:54]} 17. fxg6 {[%clk 0:01:33]}  fxg6 {[%clk 0:01:52]} 18. b3 {[%clk 0:01:19]}  h6 {[%clk 0:01:21]} 19. Nf3 {[%clk 0:01:18]}  g5 {[%clk 0:01:16]} 20. Qe1 {[%clk 0:01:16]}  Qd7 {[%clk 0:01:06]} 21. Rxb4 {[%clk 0:01:16]}  cxb4 {[%clk 0:01:06]} 22. Na4 {[%clk 0:01:16]}  a5 {[%clk 0:00:50]} 23. Nb6 {[%clk 0:01:11]}  Qg4 {[%clk 0:00:50]} 24. e5 {[%clk 0:01:02]}  Nfxd5 {[%clk 0:00:48]} 25. Nxd5 {[%clk 0:01:02]}  Nxd5 {[%clk 0:00:49]} 26. exd6 {[%clk 0:01:02]}  exd6 {[%clk 0:00:48]} 27. h3 {[%clk 0:01:02]}  Qd7 {[%clk 0:00:46]} 28. Qe4 {[%clk 0:00:57]}  Nc3 {[%clk 0:00:41]} 29. Qg6 {[%clk 0:00:46]}  d5 {[%clk 0:00:37]} 30. Re1 {[%clk 0:00:42]}  Rxf3 {[%clk 0:00:31]} 31. gxf3 {[%clk 0:00:39]}  Qxh3+ {[%clk 0:00:31]} 32. Kg1 {[%clk 0:00:39]}  Qg3+ {[%clk 0:00:31]} 33. Kf1 {[%clk 0:00:39]}  Qxf3+ {[%clk 0:00:31]} 34. Kg1 {[%clk 0:00:40]}  Qg3+ {[%clk 0:00:30]} 35. Kf1 {[%clk 0:00:40]}  Qf3+ {[%clk 0:00:29]} 36. Kg1 {[%clk 0:00:40]}  Ne2+ {[%clk 0:00:28]} 37. Rxe2 {[%clk 0:00:36]}  Qxe2 {[%clk 0:00:29]} 38. Bb2 {[%clk 0:00:34]}  Qe1+ {[%clk 0:00:22]} 39. Kh2 {[%clk 0:00:34]}  Qh4+ {[%clk 0:00:19]} 40. Kg1 {[%clk 0:00:34]}  Qg4+ {[%clk 0:00:17]} 41. Kh2 {[%clk 0:00:33]}  Qf4+ {[%clk 0:00:17]} 42. Kg1 {[%clk 0:00:33]}  Qg3+ {[%clk 0:00:15]} 43. Kf1 {[%clk 0:00:31]}  Qf3+ {[%clk 0:00:15]} 44. Kg1 {[%clk 0:00:31]}  Qf7 {[%clk 0:00:15]} 45. Qxf7+ {[%clk 0:00:27]}  Kxf7 {[%clk 0:00:15]} 46. Bc1 {[%clk 0:00:27]}  Bd4+ {[%clk 0:00:15]} 47. Kg2 {[%clk 0:00:28]}  Kg6 {[%clk 0:00:16]} 48. Bd2 {[%clk 0:00:28]}  Kf5 {[%clk 0:00:16]} 49. Kf1 {[%clk 0:00:28]}  h5 {[%clk 0:00:16]} 50. Kg2 {[%clk 0:00:28]}  h4 {[%clk 0:00:16]} 51. Be1 {[%clk 0:00:28]}  Kg4 {[%clk 0:00:16]} 52. Kh1 {[%clk 0:00:26]}  h3 {[%clk 0:00:16]} 53. Bd2 {[%clk 0:00:24]}  Be5 {[%clk 0:00:16]} 54. Be3 {[%clk 0:00:23]}  Bc7 {[%clk 0:00:15]} 55. Bc5 {[%clk 0:00:22]}  Kf3 {[%clk 0:00:14]} 56. Kg1 {[%clk 0:00:21]}  g4 {[%clk 0:00:14]} 0-1


[Site "https://www.chess.com"]

[Event "Titled Tuesday Blitz January 18 2022"]
[White "Pert, Richard G"]
[Black "Carbone, Diego"]
[WhiteFideId "404748"]
[BlackFideId "3002179"]
[WhiteElo "2441"]
[BlackElo "2199"]
[Result "0-1"]
[Round "08"]
[TimeControl "180+1"]
[Date "2022.01.18"]
[WhiteClock "0:00:46"]
[BlackClock "0:00:02"]

1. d4 {[%clk 0:03:00]}  Nf6 {[%clk 0:02:56]} 2. Bg5 {[%clk 0:02:59]}  d5 {[%clk 0:02:52]} 3. e3 {[%clk 0:02:59]}  c5 {[%clk 0:02:50]} 4. Bxf6 {[%clk 0:02:59]}  exf6 {[%clk 0:02:49]} 5. Nc3 {[%clk 0:02:56]}  Be6 {[%clk 0:02:42]} 6. Nge2 {[%clk 0:02:55]}  Nc6 {[%clk 0:02:41]} 7. g3 {[%clk 0:02:55]}  cxd4 {[%clk 0:02:20]} 8. exd4 {[%clk 0:02:53]}  Bd6 {[%clk 0:02:20]} 9. Bg2 {[%clk 0:02:53]}  Ne7 {[%clk 0:02:18]} 10. O-O {[%clk 0:02:49]}  O-O {[%clk 0:02:17]} 11. Nb5 {[%clk 0:02:44]}  Bb8 {[%clk 0:02:17]} 12. c4 {[%clk 0:02:44]}  Qd7 {[%clk 0:02:15]} 13. cxd5 {[%clk 0:02:25]}  Nxd5 {[%clk 0:02:15]} 14. Nbc3 {[%clk 0:02:24]}  Rd8 {[%clk 0:02:09]} 15. Qd2 {[%clk 0:02:10]}  Bc7 {[%clk 0:02:06]} 16. Nxd5 {[%clk 0:02:00]}  Bxd5 {[%clk 0:02:04]} 17. Bxd5 {[%clk 0:02:00]}  Qxd5 {[%clk 0:02:04]} 18. Rfd1 {[%clk 0:02:01]}  Bb6 {[%clk 0:02:00]} 19. Nc3 {[%clk 0:01:54]}  Qxd4 {[%clk 0:01:41]} 20. Qxd4 {[%clk 0:01:46]}  Rxd4 {[%clk 0:01:39]} 21. Kf1 {[%clk 0:01:46]}  Rad8 {[%clk 0:01:38]} 22. Rxd4 {[%clk 0:01:45]}  Rxd4 {[%clk 0:01:38]} 23. Ke2 {[%clk 0:01:46]}  f5 {[%clk 0:01:31]} 24. Rc1 {[%clk 0:01:45]}  g6 {[%clk 0:01:25]} 25. b3 {[%clk 0:01:44]}  Kg7 {[%clk 0:01:24]} 26. Na4 {[%clk 0:01:43]}  Bd8 {[%clk 0:01:17]} 27. Rc8 {[%clk 0:01:41]}  b6 {[%clk 0:01:07]} 28. Rb8 {[%clk 0:01:29]}  Rd7 {[%clk 0:01:00]} 29. Nc3 {[%clk 0:01:25]}  Bg5 {[%clk 0:00:51]} 30. f4 {[%clk 0:01:21]}  Bf6 {[%clk 0:00:51]} 31. Nb5 {[%clk 0:01:21]}  a6 {[%clk 0:00:43]} 32. Na3 {[%clk 0:01:20]}  b5 {[%clk 0:00:28]} 33. Rb6 {[%clk 0:01:19]}  Bb2 {[%clk 0:00:27]} 34. Rxa6 {[%clk 0:01:16]}  Bc3 {[%clk 0:00:28]} 35. Nxb5 {[%clk 0:01:15]}  Bb4 {[%clk 0:00:20]} 36. a3 {[%clk 0:01:13]}  Bc5 {[%clk 0:00:19]} 37. Rc6 {[%clk 0:01:02]}  Bg1 {[%clk 0:00:18]} 38. Kf3 {[%clk 0:00:57]}  Rd3+ {[%clk 0:00:09]} 39. Kg2 {[%clk 0:00:57]}  Rxb3 {[%clk 0:00:08]} 40. Nd6 {[%clk 0:00:51]}  Bd4 {[%clk 0:00:03]} 41. Rc7 {[%clk 0:00:49]}  Rb2+ {[%clk 0:00:03]} 42. Kf3 {[%clk 0:00:46]}  Rf2# {[%clk 0:00:02]} 0-1


[Site "https://www.chess.com"]

[Event "Titled Tuesday Blitz January 18 2022"]
[White "Prraneeth Vuppala"]
[Black "Buscar, Michael"]
[WhiteFideId "46622373"]
[BlackFideId "2603616"]
[WhiteElo "1759"]
[BlackElo "2010"]
[Result "1-0"]
[Round "08"]
[TimeControl "180+1"]
[Date "2022.01.18"]
[WhiteClock "0:00:10"]
[BlackClock "0:00:03"]

1. e4 {[%clk 0:03:00]}  c5 {[%clk 0:02:58]} 2. Nf3 {[%clk 0:03:00]}  Nc6 {[%clk 0:02:58]} 3. d4 {[%clk 0:03:01]}  cxd4 {[%clk 0:02:59]} 4. Nxd4 {[%clk 0:03:01]}  Nf6 {[%clk 0:02:59]} 5. Nc3 {[%clk 0:03:02]}  e5 {[%clk 0:03:00]} 6. Ndb5 {[%clk 0:03:01]}  h6 {[%clk 0:03:00]} 7. Nd6+ {[%clk 0:02:59]}  Bxd6 {[%clk 0:03:00]} 8. Qxd6 {[%clk 0:03:00]}  Qe7 {[%clk 0:03:01]} 9. Qxe7+ {[%clk 0:02:31]}  Kxe7 {[%clk 0:03:02]} 10. Be3 {[%clk 0:02:30]}  Rd8 {[%clk 0:03:01]} 11. f3 {[%clk 0:02:22]}  d5 {[%clk 0:02:50]} 12. exd5 {[%clk 0:02:17]}  Nxd5 {[%clk 0:02:50]} 13. Nxd5+ {[%clk 0:02:17]}  Rxd5 {[%clk 0:02:50]} 14. Bc4 {[%clk 0:02:10]}  Rd8 {[%clk 0:02:46]} 15. c3 {[%clk 0:01:59]}  Be6 {[%clk 0:02:45]} 16. Bxe6 {[%clk 0:01:55]}  Kxe6 {[%clk 0:02:45]} 17. Ke2 {[%clk 0:01:49]}  Rd7 {[%clk 0:02:34]} 18. g4 {[%clk 0:01:38]}  f6 {[%clk 0:02:32]} 19. h4 {[%clk 0:01:36]}  Ne7 {[%clk 0:02:12]} 20. h5 {[%clk 0:01:20]}  Nd5 {[%clk 0:02:07]} 21. Rad1 {[%clk 0:01:16]}  Nxe3 {[%clk 0:01:58]} 22. Rxd7 {[%clk 0:01:15]}  Kxd7 {[%clk 0:01:57]} 23. Kxe3 {[%clk 0:01:14]}  Rc8 {[%clk 0:01:46]} 24. Rd1+ {[%clk 0:01:11]}  Ke7 {[%clk 0:01:46]} 25. Rd3 {[%clk 0:01:06]}  Rc6 {[%clk 0:01:46]} 26. b3 {[%clk 0:01:02]}  Ra6 {[%clk 0:01:44]} 27. a4 {[%clk 0:01:01]}  Rb6 {[%clk 0:01:43]} 28. c4 {[%clk 0:01:00]}  a5 {[%clk 0:01:39]} 29. Ke4 {[%clk 0:00:36]}  Rc6 {[%clk 0:01:35]} 30. Rd5 {[%clk 0:00:32]}  Rb6 {[%clk 0:01:09]} 31. Rxa5 {[%clk 0:00:29]}  Rxb3 {[%clk 0:01:08]} 32. Rb5 {[%clk 0:00:28]}  Rc3 {[%clk 0:00:56]} 33. Rxb7+ {[%clk 0:00:26]}  Kd6 {[%clk 0:00:55]} 34. Rxg7 {[%clk 0:00:14]}  Rxc4+ {[%clk 0:00:55]} 35. Ke3 {[%clk 0:00:14]}  Rxa4 {[%clk 0:00:50]} 36. Rh7 {[%clk 0:00:14]}  Ra3+ {[%clk 0:00:40]} 37. Kf2 {[%clk 0:00:13]}  Ke6 {[%clk 0:00:31]} 38. Rxh6 {[%clk 0:00:13]}  Ra4 {[%clk 0:00:26]} 39. g5 {[%clk 0:00:11]}  Kf5 {[%clk 0:00:26]} 40. g6 {[%clk 0:00:09]}  Ra7 {[%clk 0:00:11]} 41. Rh7 {[%clk 0:00:09]}  Ra8 {[%clk 0:00:09]} 42. g7 {[%clk 0:00:10]}  Kf4 {[%clk 0:00:06]} 43. Rh8 {[%clk 0:00:10]}  Ra2+ {[%clk 0:00:06]} 44. Ke1 {[%clk 0:00:10]}  Ke3 {[%clk 0:00:06]} 45. Kd1 {[%clk 0:00:11]}  Kd3 {[%clk 0:00:02]} 46. Rd8+ {[%clk 0:00:10]}  Ke3 {[%clk 0:00:02]} 47. g8=Q {[%clk 0:00:10]}  Ra1+ {[%clk 0:00:03]} 48. Kc2 {[%clk 0:00:10]}  Ra2+ {[%clk 0:00:03]} 49. Qxa2 {[%clk 0:00:10]} 1-0


[Site "https://www.chess.com"]

[Event "Titled Tuesday Blitz January 18 2022"]
[White "Reprintsev, Alexander"]
[Black "Harshavardhan G B"]
[WhiteFideId "14100541"]
[BlackFideId "25059009"]
[WhiteElo "2126"]
[BlackElo "1831"]
[Result "0-1"]
[Round "08"]
[TimeControl "180+1"]
[Date "2022.01.18"]
[WhiteClock "0:00:10"]
[BlackClock "0:01:15"]

1. e4 {[%clk 0:03:00]}  c5 {[%clk 0:02:55]} 2. b3 {[%clk 0:03:00]}  d6 {[%clk 0:02:54]} 3. Bb2 {[%clk 0:03:00]}  a6 {[%clk 0:02:54]} 4. d4 {[%clk 0:02:57]}  cxd4 {[%clk 0:02:54]} 5. Qxd4 {[%clk 0:02:57]}  Nc6 {[%clk 0:02:54]} 6. Qd2 {[%clk 0:02:57]}  Nf6 {[%clk 0:02:54]} 7. Nc3 {[%clk 0:02:57]}  g6 {[%clk 0:02:53]} 8. Nd5 {[%clk 0:02:50]}  e5 {[%clk 0:02:42]} 9. Nxf6+ {[%clk 0:02:44]}  Qxf6 {[%clk 0:02:43]} 10. O-O-O {[%clk 0:02:43]}  h5 {[%clk 0:02:40]} 11. Kb1 {[%clk 0:02:39]}  Be6 {[%clk 0:02:39]} 12. g3 {[%clk 0:02:21]}  Rd8 {[%clk 0:02:39]} 13. Bh3 {[%clk 0:02:19]}  Bh6 {[%clk 0:02:37]} 14. Qe2 {[%clk 0:01:58]}  O-O {[%clk 0:02:36]} 15. Bxe6 {[%clk 0:01:55]}  fxe6 {[%clk 0:02:37]} 16. f3 {[%clk 0:01:55]}  d5 {[%clk 0:02:37]} 17. exd5 {[%clk 0:01:46]}  exd5 {[%clk 0:02:36]} 18. f4 {[%clk 0:01:32]}  d4 {[%clk 0:02:30]} 19. fxe5 {[%clk 0:01:25]}  Qf5 {[%clk 0:02:20]} 20. e6 {[%clk 0:01:17]}  Rde8 {[%clk 0:02:17]} 21. Re1 {[%clk 0:01:08]}  Rf6 {[%clk 0:02:14]} 22. Qc4 {[%clk 0:00:55]}  Rexe6 {[%clk 0:01:43]} 23. Rxe6 {[%clk 0:00:49]}  Rxe6 {[%clk 0:01:44]} 24. Ne2 {[%clk 0:00:45]}  b5 {[%clk 0:01:44]} 25. Nxd4 {[%clk 0:00:33]}  bxc4 {[%clk 0:01:40]} 26. Nxf5 {[%clk 0:00:33]}  gxf5 {[%clk 0:01:41]} 27. Rf1 {[%clk 0:00:32]}  Re2 {[%clk 0:01:32]} 28. a3 {[%clk 0:00:17]}  cxb3 {[%clk 0:01:29]} 29. cxb3 {[%clk 0:00:17]}  Rxh2 {[%clk 0:01:30]} 30. Rxf5 {[%clk 0:00:17]}  Ne7 {[%clk 0:01:27]} 31. Ra5 {[%clk 0:00:17]}  Rh3 {[%clk 0:01:22]} 32. Rxa6 {[%clk 0:00:16]}  Bg7 {[%clk 0:01:22]} 33. Bxg7 {[%clk 0:00:14]}  Kxg7 {[%clk 0:01:23]} 34. Re6 {[%clk 0:00:13]}  Nf5 {[%clk 0:01:22]} 35. a4 {[%clk 0:00:12]}  Rxg3 {[%clk 0:01:22]} 36. Kb2 {[%clk 0:00:12]}  h4 {[%clk 0:01:22]} 37. a5 {[%clk 0:00:12]}  h3 {[%clk 0:01:22]} 38. Re1 {[%clk 0:00:10]}  h2 {[%clk 0:01:19]} 39. Rh1 {[%clk 0:00:10]}  Rg2+ {[%clk 0:01:19]} 40. Ka3 {[%clk 0:00:10]}  Ng3 {[%clk 0:01:18]} 41. Rxh2 {[%clk 0:00:10]}  Rxh2 {[%clk 0:01:18]} 42. a6 {[%clk 0:00:10]}  Ne4 {[%clk 0:01:16]} 43. b4 {[%clk 0:00:10]}  Nd6 {[%clk 0:01:15]} 44. Ka4 {[%clk 0:00:10]}  Ra2+ {[%clk 0:01:15]} 0-1


[Site "https://www.chess.com"]

[Event "Titled Tuesday Blitz January 18 2022"]
[White "Salinas Herrera, Pablo"]
[Black "Ezat, Mohamed"]
[WhiteFideId "3407128"]
[BlackFideId "10600906"]
[WhiteElo "2541"]
[BlackElo "2386"]
[Result "1-0"]
[Round "08"]
[TimeControl "180+1"]
[Date "2022.01.18"]
[WhiteClock "0:00:28"]
[BlackClock "0:00:37"]

1. e4 {[%clk 0:03:00]}  c6 {[%clk 0:02:59]} 2. Nc3 {[%clk 0:03:00]}  d5 {[%clk 0:03:00]} 3. Nf3 {[%clk 0:03:00]}  Bg4 {[%clk 0:02:59]} 4. h3 {[%clk 0:03:00]}  Bh5 {[%clk 0:03:00]} 5. d3 {[%clk 0:02:36]}  e6 {[%clk 0:02:59]} 6. g3 {[%clk 0:02:35]}  Bb4 {[%clk 0:02:57]} 7. Bd2 {[%clk 0:02:35]}  Nf6 {[%clk 0:02:53]} 8. Qe2 {[%clk 0:02:32]}  d4 {[%clk 0:02:45]} 9. Nb1 {[%clk 0:02:32]}  Qb6 {[%clk 0:02:45]} 10. g4 {[%clk 0:02:22]}  Bg6 {[%clk 0:02:44]} 11. c3 {[%clk 0:02:19]}  dxc3 {[%clk 0:02:41]} 12. bxc3 {[%clk 0:02:18]}  Be7 {[%clk 0:02:40]} 13. Be3 {[%clk 0:02:09]}  Bc5 {[%clk 0:02:23]} 14. Bc1 {[%clk 0:01:46]}  Nbd7 {[%clk 0:02:13]} 15. Bg2 {[%clk 0:01:45]}  Qa6 {[%clk 0:01:57]} 16. Nbd2 {[%clk 0:01:42]}  Be7 {[%clk 0:01:51]} 17. a4 {[%clk 0:01:34]}  Nc5 {[%clk 0:01:39]} 18. Ne5 {[%clk 0:01:35]}  Bd6 {[%clk 0:01:37]} 19. Nec4 {[%clk 0:01:25]}  Be7 {[%clk 0:01:33]} 20. Ba3 {[%clk 0:00:55]}  O-O {[%clk 0:01:25]} 21. d4 {[%clk 0:00:50]}  Ncxe4 {[%clk 0:00:51]} 22. Bxe7 {[%clk 0:00:45]}  Nxc3 {[%clk 0:00:51]} 23. Qf3 {[%clk 0:00:40]}  Nfd5 {[%clk 0:00:49]} 24. Bxf8 {[%clk 0:00:39]}  Rxf8 {[%clk 0:00:49]} 25. O-O {[%clk 0:00:38]}  f5 {[%clk 0:00:48]} 26. g5 {[%clk 0:00:34]}  f4 {[%clk 0:00:46]} 27. Rfe1 {[%clk 0:00:32]}  Bf5 {[%clk 0:00:46]} 28. Nd6 {[%clk 0:00:32]}  Bd3 {[%clk 0:00:43]} 29. Qg4 {[%clk 0:00:26]}  Ne2+ {[%clk 0:00:38]} 30. Rxe2 {[%clk 0:00:26]}  Bxe2 {[%clk 0:00:37]} 31. Qxe6+ {[%clk 0:00:26]}  Kh8 {[%clk 0:00:38]} 32. Nf7+ {[%clk 0:00:27]}  Rxf7 {[%clk 0:00:38]} 33. Qe8+ {[%clk 0:00:27]}  Rf8 {[%clk 0:00:37]} 34. Qxf8# {[%clk 0:00:28]} 1-0


[Site "https://www.chess.com"]

[Event "Titled Tuesday Blitz January 18 2022"]
[White "Sanal, Vahap"]
[Black "Bacrot, Etienne"]
[WhiteFideId "6300545"]
[BlackFideId "605506"]
[WhiteElo "2603"]
[BlackElo "2673"]
[Result "0-1"]
[Round "08"]
[TimeControl "180+1"]
[Date "2022.01.18"]
[WhiteClock "0:00:04"]
[BlackClock "0:00:16"]

1. e4 {[%clk 0:03:00]}  c5 {[%clk 0:03:00]} 2. Nf3 {[%clk 0:03:00]}  d6 {[%clk 0:03:00]} 3. d4 {[%clk 0:03:00]}  cxd4 {[%clk 0:03:01]} 4. Nxd4 {[%clk 0:03:01]}  Nf6 {[%clk 0:03:01]} 5. Nc3 {[%clk 0:03:02]}  Nc6 {[%clk 0:03:01]} 6. Bg5 {[%clk 0:03:01]}  e6 {[%clk 0:03:01]} 7. Qd2 {[%clk 0:03:02]}  Be7 {[%clk 0:03:01]} 8. O-O-O {[%clk 0:03:02]}  a6 {[%clk 0:03:01]} 9. f4 {[%clk 0:03:00]}  Bd7 {[%clk 0:03:01]} 10. Nf3 {[%clk 0:03:01]}  b5 {[%clk 0:02:56]} 11. Bxf6 {[%clk 0:03:01]}  gxf6 {[%clk 0:02:55]} 12. Kb1 {[%clk 0:03:02]}  Qb6 {[%clk 0:02:54]} 13. Ne2 {[%clk 0:03:00]}  h5 {[%clk 0:02:51]} 14. h4 {[%clk 0:02:59]}  Rc8 {[%clk 0:02:20]} 15. Nfd4 {[%clk 0:02:53]}  Na5 {[%clk 0:02:18]} 16. b3 {[%clk 0:02:53]}  Nb7 {[%clk 0:02:15]} 17. Rh3 {[%clk 0:02:53]}  a5 {[%clk 0:02:14]} 18. Re3 {[%clk 0:02:52]}  Nc5 {[%clk 0:02:07]} 19. Ng3 {[%clk 0:02:51]}  b4 {[%clk 0:02:00]} 20. Be2 {[%clk 0:02:50]}  Qb7 {[%clk 0:01:59]} 21. Bf3 {[%clk 0:02:41]}  a4 {[%clk 0:01:53]} 22. Nxh5 {[%clk 0:02:34]}  axb3 {[%clk 0:01:42]} 23. cxb3 {[%clk 0:02:34]}  Rxh5 {[%clk 0:01:41]} 24. Bxh5 {[%clk 0:02:33]}  Nxe4 {[%clk 0:01:41]} 25. Qe2 {[%clk 0:02:10]}  Nc3+ {[%clk 0:01:28]} 26. Rxc3 {[%clk 0:02:10]}  bxc3 {[%clk 0:01:21]} 27. Rc1 {[%clk 0:01:49]}  e5 {[%clk 0:01:05]} 28. Re1 {[%clk 0:00:56]}  Qb4 {[%clk 0:00:53]} 29. Nc2 {[%clk 0:00:54]}  Qxf4 {[%clk 0:00:53]} 30. Rf1 {[%clk 0:00:44]}  Qxh4 {[%clk 0:00:49]} 31. g4 {[%clk 0:00:44]}  d5 {[%clk 0:00:45]} 32. Qd3 {[%clk 0:00:42]}  Be6 {[%clk 0:00:29]} 33. Qh7 {[%clk 0:00:22]}  Kd7 {[%clk 0:00:29]} 34. Qd3 {[%clk 0:00:22]}  Qh2 {[%clk 0:00:29]} 35. Qb5+ {[%clk 0:00:22]}  Kd8 {[%clk 0:00:28]} 36. Rd1 {[%clk 0:00:20]}  Qg2 {[%clk 0:00:21]} 37. a4 {[%clk 0:00:19]}  Bd6 {[%clk 0:00:18]} 38. Qb6+ {[%clk 0:00:11]}  Ke7 {[%clk 0:00:18]} 39. Rg1 {[%clk 0:00:04]}  Qe4 {[%clk 0:00:16]} 40. Qe3 {[%clk 0:00:03]}  Qxe3 {[%clk 0:00:15]} 41. Nxe3 {[%clk 0:00:04]}  d4 {[%clk 0:00:16]} 42. Nf5+ {[%clk 0:00:03]}  Bxf5+ {[%clk 0:00:16]} 43. gxf5 {[%clk 0:00:04]}  d3 {[%clk 0:00:16]} 0-1


[Site "https://www.chess.com"]